bitfinex/quotes_ETHUSD_20220106
["timestamp","ask_amount","ask_price","bid_price","bid_amount"]
[1641443617284,1.81699989,3437.5,3436.4,1.67426808]
[1641443617285,1.81699989,3437.5,3436.8,0.00682108]
[1641443617681,0.345,3438.1,3437.3,1.1280202]
[1641443617891,0.00284211,3438.5,3437.9,1.08249847]
[1641443618287,1.0723085,3439.5,3437.9,1.08249847]
[1641443618288,0.00227369,3438.4,3437.9,1.08249847]
[1641443618491,0.00227369,3438.4,3437.6,6.17]
[1641443618691,1.98046279,3438.2,3437.6,6.17]
[1641443618994,7.35,3438.1,3437.6,6.17]
[1641443619192,7.35227369,3438.1,3437.6,6.17]
[1641443619390,0.00170527,3438.0,3437.6,6.17]
[1641443619590,11.295,3437.9,3436.0,3.672]
[1641443619790,10.19048254,3437.7,3437.6,4.34376992]
[1641443619989,10.19048254,3437.7,3436.1,6.17909478]
[1641443619990,10.53548254,3437.7,3436.1,6.17909478]
[1641443620192,0.7278472,3437.0,3436.1,0.00909478]
[1641443620393,0.345,3436.9,3436.2,0.00852635]
[1641443620637,0.345,3436.9,3435.0,4.89464176]
[1641443620638,8.55,3436.8,3435.2,1.32406187]
[1641443620836,1.79787186,3436.0,3435.9,0.00170528]
[1641443621035,0.00284211,3436.7,3435.2,1.32406187]
[1641443621237,0.00284211,3436.7,3435.3,0.00341054]
[1641443621541,0.00397897,3436.6,3435.3,0.00341054]
[1641443621939,0.00341055,3436.5,3435.3,0.00341054]
[1641443622239,2.06075786,3436.4,3435.3,0.00341054]
[1641443622638,0.0022737,3436.3,3435.3,0.00341054]
[1641443623040,0.00170528,3436.2,3435.3,0.00341054]
[1641443623436,0.00113685,3436.1,3435.3,0.00341054]
[1641443623838,0.0022737,3436.3,3435.3,0.00341054]
[1641443624277,0.00170528,3436.2,3435.3,0.00341054]
[1641443624481,0.00170528,3436.2,3434.8,0.01266854]
[1641443624482,11.0,3436.0,3433.9,1.2035]
[1641443624680,11.0,3436.0,3433.7,0.15515101]
[1641443624681,0.345,3435.9,3433.8,13.11]
[1641443624881,1.34841054,3435.9,3434.9,0.00227369]
[1641443625079,0.00284212,3435.8,3433.9,0.00795792]
[1641443625282,2.24216759,3435.1,3434.2,2.8515897]
[1641443625483,0.345,3435.4,3434.2,2.8515897]
[1641443625682,0.345,3435.4,3434.3,0.00568423]
[1641443626884,0.345,3435.4,3434.8,1.01675557]
[1641443628136,0.345,3435.4,3434.3,0.00568423]
[1641443628534,0.345,3435.4,3433.9,0.00795792]
[1641443628935,0.345,3435.4,3433.8,0.00852635]
[1641443629134,1.77160577,3434.8,3433.8,1.10761022]
[1641443629341,1.77160577,3434.8,3433.8,0.00852635]
[1641443629537,1.77160577,3434.8,3433.9,0.00795792]
[1641443629538,2.11660577,3434.8,3433.9,0.00795792]
[1641443629835,2.11660577,3434.8,3433.8,0.00852635]
[1641443630041,7.55,3434.7,3433.7,0.00323913]
[1641443630236,1.70009863,3434.0,3433.7,0.00323913]
[1641443630440,0.00454739,3434.6,3433.7,0.00323913]
[1641443630639,9.395,3434.5,3432.8,0.01242884]
[1641443630841,0.7283896,3434.3,3432.7,4.89464176]
[1641443631039,6.35195793,3434.2,3432.9,0.00511581]
[1641443631239,0.6472737,3434.2,3432.9,0.00511581]
[1641443631440,0.00170527,3434.1,3432.9,0.00511581]
[1641443631786,0.645,3434.2,3432.7,4.84975757]
[1641443631787,0.34613685,3434.0,3432.7,4.84975757]
[1641443631992,0.35125266,3434.0,3432.7,4.84975757]
[1641443632191,0.00568424,3433.9,3432.7,4.84975757]
[1641443632690,0.00511581,3433.8,3432.4,3.21951906]
[1641443632891,2.16316045,3433.7,3432.4,3.21951906]
[1641443633091,2.16770784,3433.7,3432.5,0.00227369]
[1641443633295,0.00397897,3433.6,3432.5,0.00227369]
[1641443633692,0.00341054,3433.5,3432.5,0.00227369]
[1641443634092,0.00284212,3433.4,3432.5,0.00227369]
[1641443634291,0.00284212,3433.4,3432.6,0.00111827]
[1641443634497,0.00227369,3433.3,3432.6,0.00111827]
[1641443634794,0.00170527,3433.2,3432.7,0.00113685]
[1641443635193,0.00113685,3433.1,3432.7,0.00113685]
[1641443635644,0.00397897,3433.6,3432.7,0.00113685]
[1641443636044,0.00341054,3433.5,3432.7,0.00113685]
[1641443636245,2.00341054,3433.5,3432.7,0.00113685]
[1641443636443,0.00284212,3433.4,3433.1,1.01854714]
[1641443636844,0.00227369,3433.3,3433.1,1.01854714]
[1641443637243,2.0,3433.5,3433.1,1.01854714]
[1641443637244,0.00170527,3433.2,3433.1,1.01854714]
[1641443637845,0.00170527,3433.2,3433.1,5.36854714]
[1641443638246,0.00170527,3433.2,3432.7,0.00113685]
[1641443638546,0.00113685,3433.1,3432.7,0.00113685]
[1641443639046,0.00284212,3433.4,3432.7,0.00113685]
[1641443639480,0.00227369,3433.3,3432.7,0.00113685]
[1641443639880,0.00170527,3433.2,3432.7,0.00113685]
[1641443640284,0.00113685,3433.1,3432.7,0.00113685]
[1641443640685,0.00284212,3433.4,3432.7,0.00113685]
[1641443641185,0.00227369,3433.3,3432.6,0.00111827]
[1641443641385,0.00341054,3433.3,3432.6,0.00111827]
[1641443641583,0.00284212,3433.2,3432.6,0.00111827]
[1641443641784,0.00284212,3433.2,3432.4,1.08991915]
[1641443641984,0.0022737,3433.1,3431.7,0.01223598]
[1641443642188,0.0022737,3433.1,3432.5,0.00113684]
[1641443642386,0.00170527,3433.0,3432.5,0.00113684]
[1641443642789,4.55349664,3433.5,3432.5,0.00113684]
[1641443642790,0.00113685,3432.9,3432.5,0.00113684]
[1641443643248,0.00397897,3433.4,3432.5,0.00113684]
[1641443643650,0.00341054,3433.3,3432.9,1.17239228]
[1641443644054,2.0,3433.5,3432.9,1.17239228]
[1641443644055,0.00284212,3433.2,3432.9,1.17239228]
[1641443644254,0.00284212,3433.2,3433.0,2.16431665]
[1641443644451,0.0022737,3433.1,3433.0,2.16431665]
[1641443644651,0.0022737,3433.1,3433.0,13.11431665]
[1641443646455,0.0022737,3433.1,3433.0,2.16431665]
[1641443646656,0.0022737,3433.1,3433.0,3.25]
[1641443647086,0.0022737,3433.1,3432.5,0.01348485]
[1641443647287,0.0022737,3433.1,3432.5,0.00113684]
[1641443647488,0.00170527,3433.0,3432.5,0.00113684]
[1641443647686,0.00170527,3433.0,3432.0,0.13819997]
[1641443647687,2.13300931,3432.9,3432.1,0.00341054]
[1641443647885,2.13414616,3432.9,3432.1,0.00341054]
[1641443651133,0.00113685,3432.9,3432.1,0.00341054]
[1641443655286,0.00113685,3432.9,3432.2,0.00107175]
[1641443655490,0.00113685,3432.9,3432.3,0.01287722]
[1641443655685,0.00113685,3432.9,3432.3,0.01515091]
[1641443655886,0.00113685,3432.9,3432.4,0.00170527]
[1641443657488,0.00113685,3432.9,3432.3,0.01287722]
[1641443657689,0.00390454,3432.8,3432.2,0.00107175]
[1641443657898,0.00617824,3432.8,3432.2,0.00107175]
[1641443658130,0.00170527,3432.7,3432.2,0.00107175]
[1641443658330,0.00170527,3432.7,3431.9,0.01]
[1641443658534,0.00113685,3432.6,3431.9,0.01]
[1641443658735,0.00113685,3432.6,3431.1,3.87299193]
[1641443658736,5.1,3432.5,3431.1,2.3834]
[1641443658935,5.1,3432.5,3430.9,0.60845714]
[1641443658936,5.10284212,3432.5,3430.9,0.60845714]
[1641443659137,0.72884,3432.1,3431.2,0.00454739]
[1641443659337,0.72884,3432.1,3430.9,0.60845714]
[1641443659338,0.345,3432.0,3430.9,0.60845714]
[1641443659539,0.345,3432.0,3431.0,0.00113684]
[1641443659540,0.64954739,3432.0,3431.0,0.00113684]
[1641443659736,8.55,3431.8,3430.5,6.18873634]
[1641443659936,0.345,3431.7,3430.5,6.07594915]
[1641443660141,0.345,3431.7,3430.6,0.0022737]
[1641443660142,0.728998,3431.2,3430.6,0.0022737]
[1641443660336,0.728998,3431.2,3430.4,2.21304799]
[1641443660337,0.645,3431.1,3430.4,2.21304799]
[1641443660542,0.01272425,3430.7,3430.3,1000.007]
[1641443660738,2.01207943,3430.6,3430.3,1000.007]
[1641443660945,2.01207943,3430.6,3430.4,0.00113685]
[1641443661144,0.3,3430.5,3430.4,0.00113685]
[1641443661340,0.3,3430.5,3430.3,867.00710819]
[1641443661341,0.1331,3430.4,3430.3,867.00710819]
[1641443661540,11.0831,3430.4,3430.3,740.50099183]
[1641443661781,11.0831,3430.4,3430.3,732.19867028]
[1641443661782,15.56815908,3430.4,3430.3,732.19867028]
[1641443661986,15.56815908,3430.4,3430.3,718.10561339]
[1641443662185,15.56815908,3430.4,3430.3,705.1295965]
[1641443662386,15.56815908,3430.4,3430.3,696.4885965]
[1641443662589,42.20543655,3430.4,3430.3,560.41082055]
[1641443662793,72.71323,3430.4,3430.3,331.06577136]
[1641443662991,78.16701837,3430.4,3430.3,295.2840738]
[1641443663197,78.18285222,3430.4,3430.3,278.68651704]
[1641443663388,80.32504461,3430.4,3430.3,263.67008663]
[1641443663591,80.88640653,3430.4,3430.3,244.69539143]
[1641443663792,80.88640653,3430.4,3430.3,241.77569743]
[1641443663793,77.06825453,3430.4,3430.3,241.77569743]
[1641443664092,46.38791104,3430.4,3430.3,116.45427278]
[1641443664293,46.39271104,3430.4,3430.3,100.72681278]
[1641443664492,50.30513104,3430.4,3430.3,82.90332961]
[1641443664793,49.87026066,3430.4,3430.3,65.30038355]
[1641443664992,49.84306066,3430.4,3430.3,53.62131785]
[1641443665193,49.74467327,3430.4,3430.3,41.94289785]
[1641443665393,48.07306066,3430.4,3430.3,36.10443785]
[1641443665639,42.2187771,3430.4,3430.3,36.10443785]
[1641443665843,40.1939771,3430.4,3430.3,36.10569474]
[1641443666039,40.25636449,3430.4,3430.3,30.24288474]
[1641443666238,39.29361487,3430.4,3430.3,30.21718474]
[1641443666437,39.22482748,3430.4,3430.3,24.38042474]
[1641443666639,39.29521487,3430.4,3430.3,18.51733474]
[1641443666841,39.30001487,3430.4,3430.3,18.51733474]
[1641443667042,40.77561487,3430.4,3430.3,12.65390474]
[1641443667242,40.77401487,3430.4,3430.3,6.81637474]
[1641443667541,0.07118739,3430.0,3429.3,0.00109249]
[1641443667741,0.07118739,3430.0,3427.0,0.8594]
[1641443667742,0.1331,3429.2,3427.0,0.8594]
[1641443667942,0.1331,3427.2,3425.5,0.0032236]
[1641443668140,0.1331,3427.0,3425.7,0.0127532]
[1641443668343,0.1331,3426.8,3425.7,0.0127532]
[1641443668539,0.1331,3426.6,3424.9,4.37852]
[1641443668741,0.1331,3426.4,3425.3,0.01270862]
[1641443668941,0.1331,3426.2,3425.1,0.14104209]
[1641443669144,7.896e-05,3426.3,3426.1,0.4]
[1641443669384,0.00391187,3426.8,3426.1,0.4]
[1641443669587,0.345,3426.7,3426.1,0.4]
[1641443669785,0.116,3428.2,3426.0,1.39696808]
[1641443669786,0.16157266,3427.3,3426.0,0.78296808]
[1641443669985,5.0142558,3428.7,3426.2,0.00284212]
[1641443670186,4.962e-05,3428.3,3428.2,1.21758902]
[1641443670389,0.01230194,3428.3,3427.7,0.72946]
[1641443670585,0.02139671,3428.3,3426.4,2.18862]
[1641443670784,0.01221433,3427.0,3426.6,1.45907]
[1641443670987,0.01221433,3427.0,3426.5,0.00113685]
[1641443671187,0.00113684,3426.9,3426.6,1.10501337]
[1641443671385,0.00113684,3426.9,3426.7,1.36501589]
[1641443671586,3.684e-05,3426.9,3426.7,1.36501589]
[1641443671786,3.684e-05,3426.9,3426.7,2.09463589]
[1641443672588,3.684e-05,3426.9,3426.7,3.69463589]
[1641443672786,3.684e-05,3426.9,3426.7,3.39463589]
[1641443673057,0.01244133,3428.0,3426.7,3.39463589]
[1641443673249,0.01244133,3428.0,3427.2,0.72949]
[1641443673553,0.01244133,3428.0,3427.3,1.47880368]
[1641443673554,8.424e-05,3427.9,3427.3,1.47880368]
[1641443673752,8.424e-05,3427.9,3427.4,1.22579304]
[1641443673950,8.424e-05,3427.9,3427.4,1.22855092]
[1641443674152,4.962e-05,3428.3,3427.4,1.22855092]
[1641443674153,4.962e-05,3428.3,3427.5,6.06886097]
[1641443674351,4.962e-05,3428.3,3428.1,1.11491574]
[1641443674550,0.01210162,3429.8,3428.1,0.3]
[1641443674951,4.739e-05,3429.0,3428.1,0.3]
[1641443675151,0.00402635,3429.7,3428.2,0.14269997]
[1641443675553,0.00345793,3429.6,3428.7,2.67510241]
[1641443675752,0.00345793,3429.6,3429.1,1.32349472]
[1641443675951,0.00345793,3429.6,3428.8,0.00108946]
[1641443675952,0.0028895,3429.5,3428.8,0.00108946]
[1641443676257,0.01217038,3429.2,3428.3,0.00393158]
[1641443676451,0.35717038,3429.2,3428.8,0.00128034]
[1641443676651,0.35717038,3429.2,3428.3,0.00393158]
[1641443676898,1.41168689,3428.8,3428.3,0.00393158]
[1641443677104,0.345,3428.7,3428.3,0.00393158]
[1641443677296,0.345,3428.7,3428.0,0.00563685]
[1641443678198,0.345,3428.7,3427.9,1.18257257]
[1641443678400,0.345,3428.7,3427.9,0.72948]
[1641443678601,0.345,3428.7,3426.8,6.74076061]
[1641443678602,0.01280573,3428.4,3427.1,1.45896]
[1641443678804,0.345,3428.3,3426.7,4.43625]
[1641443679002,0.345,3428.3,3427.3,0.00397896]
[1641443679003,0.34670527,3428.3,3427.3,0.00397896]
[1641443679201,0.01268013,3427.6,3425.7,10.48099476]
[1641443679405,0.01268013,3427.6,3426.4,0.00909477]
[1641443679601,0.34613684,3427.5,3427.0,1.14923225]
[1641443679801,0.34613684,3427.5,3426.4,0.00909477]
[1641443680001,0.34613684,3427.5,3427.1,0.00113685]
[1641443680200,0.34613684,3427.5,3426.0,0.00738951]
[1641443680532,0.34613684,3427.5,3426.0,1.45967]
[1641443680735,0.34613684,3427.5,3425.9,1.01120352]
[1641443680934,0.16119999,3427.4,3426.1,0.00682108]
[1641443681134,1.10332062,3427.1,3426.3,1.23401122]
[1641443681342,0.345,3427.0,3426.3,1.23401122]
[1641443681538,0.645,3427.0,3426.4,0.00511581]
[1641443682347,0.645,3427.0,3425.6,2.22133208]
[1641443682547,0.00284211,3426.9,3425.9,0.00284212]
[1641443682847,0.00227369,3426.8,3425.9,0.00284212]
[1641443683247,0.34670527,3426.7,3426.1,1.42970959]
[1641443683447,0.345,3426.6,3425.9,0.00284212]
[1641443683647,0.345,3426.6,3425.6,1.45982]
[1641443683648,0.34613684,3426.6,3426.2,0.00113685]
[1641443683851,0.34613684,3426.6,3425.7,0.00397897]
[1641443684498,0.34613684,3426.6,3425.9,1.23629549]
[1641443684898,0.34613684,3426.6,3426.0,0.0022737]
[1641443685502,0.34613684,3426.6,3425.3,0.5]
[1641443685503,24.0,3426.5,3424.9,1.46018]
[1641443685702,24.0,3426.5,3424.3,4.0042]
[1641443685703,5.2568506,3426.4,3424.3,4.0042]
[1641443685904,0.01266388,3426.0,3425.0,0.00568423]
[1641443686102,0.345,3425.9,3424.8,0.35]
[1641443686308,0.35011581,3425.9,3424.8,0.35]
[1641443686509,1.11059525,3425.3,3424.8,0.35]
[1641443686709,0.345,3425.2,3424.8,0.35]
[1641443686905,0.345,3425.2,3424.9,0.00167736]
[1641443686906,0.34613684,3425.2,3424.9,0.00167736]
[1641443687105,0.34613684,3425.2,3424.8,0.35167736]
[1641443687106,0.34613684,3425.2,3424.8,0.30167736]
[1641443687507,0.35912956,3425.2,3424.0,0.5]
[1641443687708,0.35912956,3425.2,3423.8,0.00614155]
[1641443687907,0.35912956,3425.2,3424.1,0.00511581]
[1641443688345,1.44314323,3424.8,3424.1,0.00511581]
[1641443688546,0.345,3424.7,3424.1,0.00511581]
[1641443688745,0.345,3424.7,3423.8,0.00614155]
[1641443688946,0.01241601,3424.5,3423.8,0.00614155]
[1641443689151,0.01241601,3424.5,3423.9,0.00113685]
[1641443689152,0.345,3424.4,3423.9,0.00113685]
[1641443689346,1.35956952,3424.0,3423.3,1.11232192]
[1641443689546,0.01241601,3424.5,3423.3,1.11232192]
[1641443689547,0.295,3423.9,3423.3,1.11232192]
[1641443689750,0.345,3423.8,3423.4,0.00284212]
[1641443689947,0.345,3423.8,3423.3,1.11232192]
[1641443689948,0.345,3423.7,3423.3,1.11232192]
[1641443690147,5.27e-06,3423.7,3423.3,1.11232192]
[1641443690350,3.685e-05,3423.6,3423.3,1.11232192]
[1641443690548,3.685e-05,3423.6,3423.3,1.64437602]
[1641443690751,0.00402108,3424.6,3423.5,0.01228367]
[1641443691147,0.00515266,3424.5,3423.5,0.01228367]
[1641443691349,0.00515266,3424.5,3424.0,0.73016]
[1641443691548,0.00458424,3424.4,3424.2,1.2441991]
[1641443691783,0.00458424,3424.4,3424.3,1.3748665]
[1641443691979,0.345,3424.8,3424.3,1.3748665]
[1641443692383,0.00628951,3424.7,3424.3,1.3748665]
[1641443692785,0.00572108,3424.6,3424.4,1.46056]
[1641443693185,0.00515266,3424.5,3424.4,1.46056]
[1641443693385,5.266e-05,3424.5,3424.4,1.46056]
[1641443693584,0.1224,3426.4,3424.4,6.64010362]
[1641443693786,5.5418,3426.8,3424.5,5.36501995]
[1641443693787,0.345,3426.0,3424.5,5.36501995]
[1641443693985,0.345,3426.1,3425.8,1.36500328]
[1641443694392,0.345,3426.1,3425.9,1.08595082]
[1641443695086,0.01136847,3426.5,3425.9,1.08595082]
[1641443695390,0.01080005,3426.4,3425.9,3.28976082]
[1641443695642,0.345,3427.5,3426.0,0.00277365]
[1641443695845,0.345,3427.5,3427.4,1.01482806]
[1641443696045,0.345,3427.5,3426.5,1.4594]
[1641443696245,0.39405038,3427.5,3426.5,0.46501577]
[1641443696446,0.39405038,3427.5,3426.7,1.45941]
[1641443696648,0.39405038,3427.5,3426.9,0.7297]
[1641443696846,0.39405038,3427.5,3426.7,1.45941]
[1641443697052,0.39405038,3427.5,3427.0,0.00227369]
[1641443697247,0.39405038,3427.5,3426.7,1.13452096]
[1641443697447,0.01235747,3427.4,3427.2,1.39519242]
[1641443697649,0.01576801,3427.4,3427.2,2.67320103]
[1641443697848,0.05246092,3427.4,3427.2,3.40292103]
[1641443698951,0.345,3428.3,3427.2,3.40292103]
[1641443698952,0.345,3428.3,3427.6,0.72957]
[1641443699151,0.345,3428.3,3427.5,1.45911]
[1641443699152,0.345,3428.3,3427.9,0.72956]
[1641443699386,0.00454739,3428.2,3427.9,0.72956]
[1641443699787,0.00397896,3428.1,3428.0,1.08138855]
[1641443700196,7.896e-05,3428.1,3428.0,2.84159532]
[1641443700493,0.1686,3429.0,3428.3,0.72933]
[1641443700693,0.1801,3429.9,3428.4,1.45857]
[1641443700898,0.345,3429.8,3429.7,12.99076648]
[1641443701094,0.345,3429.8,3429.7,12.99825587]
[1641443701493,0.345,3429.8,3428.8,1.45857]
[1641443701694,0.4586,3429.8,3428.5,0.0016263]
[1641443701895,0.11959478,3429.7,3428.5,0.0016263]
[1641443702098,0.345,3429.6,3428.4,3.28596035]
[1641443702293,0.34962636,3429.6,3428.5,0.0016263]
[1641443702495,0.00405793,3429.5,3428.5,0.0016263]
[1641443702797,0.34848951,3429.4,3428.5,0.0016263]
[1641443703044,0.0127484,3429.0,3428.5,0.0016263]
[1641443703235,0.345,3428.9,3428.1,0.0039]
[1641443703436,0.345,3428.9,3427.7,0.00617369]
[1641443703638,17.0828,3428.8,3427.4,0.00787896]
[1641443703838,5.98855822,3428.7,3428.0,1.13801227]
[1641443704039,4.3,3428.6,3427.4,0.00787896]
[1641443704241,0.345,3428.5,3428.1,0.0039]
[1641443704440,0.345,3428.5,3428.4,9.8543414]
[1641443704643,0.345,3428.5,3428.4,8.5]
[1641443704841,0.345,3428.5,3428.4,0.00219472]
[1641443705040,0.345,3428.5,3428.2,1.38481131]
[1641443705241,0.345,3428.5,3427.0,0.00086247]
[1641443705441,0.345,3428.5,3427.2,0.72972]
[1641443706141,0.345,3428.5,3427.5,1.10588352]
[1641443706540,1.345,3428.5,3427.6,0.00454739]
[1641443706790,5.9,3428.3,3427.0,0.00086247]
[1641443706998,0.345,3428.2,3427.3,0.00170527]
[1641443707196,0.345,3428.1,3427.3,0.00170527]
[1641443707395,0.34784211,3428.1,3427.6,1.15632925]
[1641443707596,0.00227369,3428.0,3427.6,1.15632925]
[1641443707793,0.345,3427.9,3427.6,1.15632925]
[1641443707993,0.34670527,3427.9,3427.6,1.15632925]
[1641443708193,0.00113684,3427.8,3427.6,1.15632925]
[1641443708395,0.345,3427.7,3427.6,2.36902856]
[1641443708795,0.345,3427.7,3427.6,2.03848056]
[1641443708994,0.345,3427.7,3427.6,6.63848056]
[1641443709597,0.00113684,3427.8,3427.6,6.63848056]
[1641443709801,0.345,3428.9,3427.6,6.63848056]
[1641443709998,0.345,3428.9,3428.5,1.26444731]
[1641443710198,0.345,3428.9,3427.6,5.28236428]
[1641443710395,0.345,3428.9,3428.7,1.5007007]
[1641443710638,0.345,3428.9,3428.1,2.91788]
[1641443711232,0.345,3428.9,3428.1,4.25744494]
[1641443711637,1.18005603,3428.8,3428.4,1.4273337]
[1641443711836,0.345,3428.7,3427.5,1.4592]
[1641443712036,0.01254205,3428.5,3427.2,0.72977]
[1641443712235,0.345,3428.4,3427.6,0.00113684]
[1641443712440,0.34841055,3428.4,3427.3,0.00284211]
[1641443712636,0.00284212,3428.3,3427.3,0.00284211]
[1641443712835,1.67761639,3428.2,3427.9,1.09513529]
[1641443713035,0.35011581,3428.2,3427.2,1.1650213]
[1641443713235,0.00454738,3428.1,3427.1,0.72977]
[1641443713437,0.345,3428.0,3427.1,0.72977]
[1641443713636,0.34897896,3428.0,3427.1,0.72977]
[1641443713836,0.00341054,3427.9,3427.1,0.72977]
[1641443714037,0.345,3427.8,3427.1,0.72977]
[1641443714308,0.34784211,3427.8,3427.3,2.14022721]
[1641443714496,0.00227369,3427.7,3427.3,2.14022721]
[1641443714697,0.34727369,3427.7,3427.3,2.14022721]
[1641443715000,0.00170527,3427.6,3427.3,2.14022721]
[1641443715397,0.00113684,3427.5,3427.3,2.14022721]
[1641443715597,0.00113684,3427.5,3427.4,1.3096107]
[1641443715796,0.00170527,3427.6,3427.4,1.3096107]
[1641443715996,0.00113684,3427.5,3427.4,1.3096107]
[1641443716797,0.00113684,3427.5,3427.0,0.00170527]
[1641443717199,0.00113684,3427.5,3427.4,1.09738954]
[1641443718031,0.00113684,3427.5,3426.7,0.73323054]
[1641443718432,0.00113684,3427.5,3426.9,0.7298076]
[1641443718635,0.00113684,3427.5,3426.8,0.73268212]
[1641443718835,0.00113684,3427.5,3426.8,0.73355881]
[1641443719036,0.00113684,3427.5,3426.9,1.18071357]
[1641443720035,0.00113684,3427.5,3427.1,0.7298]
[1641443720435,0.00113684,3427.5,3427.2,1.36834349]
[1641443720637,0.00113684,3427.5,3427.1,0.7298]
[1641443721237,0.34613684,3427.5,3427.1,0.7298]
[1641443721884,0.34613684,3427.5,3427.2,0.7297485]
[1641443722091,0.34613684,3427.5,3427.2,1.4594785]
[1641443722284,0.34613684,3427.5,3427.1,1.00870758]
[1641443723491,0.34613684,3427.5,3427.0,1.4594364]
[1641443723692,0.34613684,3427.5,3426.9,1.18071357]
[1641443723991,0.34613684,3427.5,3427.1,0.00113685]
[1641443724991,0.34613684,3427.5,3426.9,0.0022737]
[1641443725397,0.01269095,3427.4,3426.8,0.00087669]
[1641443725633,0.345,3427.3,3426.8,0.00087669]
[1641443725835,1.11091572,3426.9,3426.4,1.28194592]
[1641443726033,0.345,3426.8,3426.4,1.28194592]
[1641443726232,0.345,3426.8,3426.5,0.00227369]
[1641443726835,0.345,3426.8,3425.9,1.4599778]
[1641443727034,0.00113685,3426.7,3426.3,0.00113685]
[1641443727233,0.345,3426.6,3426.3,0.00113685]
[1641443728340,0.345,3426.6,3426.5,8.19638443]
[1641443728740,0.345,3426.6,3425.1,0.13819997]
[1641443728741,5.45,3426.5,3425.1,0.13819997]
[1641443728941,0.35743076,3426.6,3425.5,1.4601676]
[1641443728942,0.345,3426.4,3425.5,1.4601676]
[1641443729139,0.345,3426.3,3425.5,1.4601676]
[1641443729392,0.345,3426.3,3425.1,0.13819997]
[1641443729587,0.345,3426.3,3425.6,0.00397896]
[1641443729786,1.09223594,3426.0,3425.5,1.51036465]
[1641443729990,0.345,3425.9,3425.5,1.51036465]
[1641443730296,0.345,3425.8,3425.2,0.00625266]
[1641443730697,0.345,3425.8,3425.2,0.73643266]
[1641443731091,0.345,3425.8,3425.3,0.73588423]
[1641443731292,0.345,3425.8,3425.7,6.51479853]
[1641443731493,0.345,3425.8,3425.7,5.3]
[1641443731691,0.345,3425.8,3425.7,5.30341054]
[1641443731892,0.345,3425.8,3425.7,0.00341054]
[1641443733739,0.345,3425.8,3425.7,4.35341054]
[1641443733944,0.345,3425.8,3425.7,0.00341054]
[1641443734140,0.345,3425.8,3424.0,4.1498977]
[1641443734141,0.345,3425.8,3424.9,1.4605216]
[1641443734339,0.345,3425.8,3425.2,0.7302833]
[1641443734540,0.345,3425.8,3425.0,0.00397896]
[1641443734839,0.345,3425.8,3424.7,1.19746957]
[1641443734840,0.345,3425.8,3424.8,0.00511581]
[1641443735139,0.345,3425.8,3425.3,1.15150319]
[1641443735640,0.345,3425.8,3425.5,0.73018]
[1641443735845,0.345,3425.8,3425.4,0.00170527]
[1641443736042,3.25,3425.7,3423.4,10.16273]
[1641443736241,0.345,3425.6,3423.9,0.01234652]
[1641443736440,0.34613685,3425.6,3424.5,0.00511581]
[1641443736886,1.47588997,3425.4,3424.9,1.88891136]
[1641443737092,0.345,3425.3,3424.9,1.88891136]
[1641443737291,0.345,3425.2,3425.0,0.00227369]
[1641443737492,0.345,3425.1,3425.0,0.00227369]
[1641443737693,0.345,3425.1,3425.0,10.00227369]
[1641443738694,0.345,3425.1,3425.0,13.20227369]
[1641443738891,3.685e-05,3425.6,3425.1,11.995]
[1641443739093,3.685e-05,3425.6,3425.5,0.01210155]
[1641443739290,4.332207,3427.2,3425.6,14.55]
[1641443739291,5.24794552,3426.9,3425.6,14.55]
[1641443739494,5.24794552,3426.9,3425.5,0.01210155]
[1641443739495,1.59914552,3426.9,3425.5,0.01210155]
[1641443739694,0.00113685,3425.8,3425.5,0.01210155]
[1641443739897,0.00113685,3425.8,3425.4,1.18363577]
[1641443740094,0.00113685,3425.8,3425.6,0.00090711]
[1641443740543,0.00113685,3425.8,3425.7,14.63497423]
[1641443740745,0.00113685,3425.8,3425.7,16.82500173]
[1641443740948,3.685e-05,3425.8,3425.7,16.82500173]
[1641443741347,3.685e-05,3425.8,3425.7,10.52500173]
[1641443741546,3.685e-05,3425.8,3425.7,14.57500173]
[1641443743152,0.345,3426.3,3426.0,0.7299135]
[1641443743351,0.345,3426.4,3425.8,12.59328979]
[1641443743554,0.345,3426.4,3426.1,1.35405825]
[1641443744157,0.00625265,3426.9,3426.1,3.54384445]
[1641443744587,0.00568423,3426.8,3426.4,2.9189388]
[1641443744788,0.5079,3427.8,3426.4,2.9189388]
[1641443744990,0.5079,3427.8,3426.2,14.56292363]
[1641443744991,0.1629,3427.8,3426.5,0.00170527]
[1641443745190,0.00284212,3427.3,3427.0,1.49132802]
[1641443745393,0.345,3428.3,3428.1,1.94110978]
[1641443745592,0.345,3428.7,3428.1,2.67055978]
[1641443745788,9.27063541,3429.3,3428.2,9.85]
[1641443745789,6.21749353,3429.3,3428.2,9.85]
[1641443745988,0.00227369,3428.6,3428.2,9.85]
[1641443746190,7.369e-05,3428.6,3428.3,0.72943]
[1641443746395,0.345,3429.1,3428.9,1.38614995]
[1641443746590,0.345,3429.1,3428.9,2.11554715]
[1641443746790,0.345,3429.6,3429.0,9.8]
[1641443747192,0.345,3429.6,3429.2,0.72934]
[1641443747389,0.345,3429.6,3429.2,0.67934]
[1641443747590,0.345,3429.6,3429.3,2.187866]
[1641443747790,0.345,3429.6,3429.2,0.77348669]
[1641443748038,0.00625265,3430.1,3429.7,1.15125208]
[1641443748245,0.00625265,3430.1,3429.8,0.7291552]
[1641443748441,0.345,3430.6,3429.8,9.7291552]
[1641443748642,0.295,3430.6,3429.8,9.0]
[1641443748843,0.00284212,3430.5,3430.2,1.4582]
[1641443749342,0.00227369,3430.4,3430.2,1.4582]
[1641443749642,0.00170527,3430.3,3430.2,1.4582]
[1641443749842,5.27e-06,3430.3,3430.2,12.4591367]
[1641443750051,5.27e-06,3430.3,3430.2,11.42073916]
[1641443750246,5.27e-06,3430.3,3430.2,11.42300231]
[1641443750645,5.27e-06,3430.3,3430.2,9.96480231]
[1641443751044,5.27e-06,3430.3,3430.2,8.45226315]
[1641443752098,5.27e-06,3430.3,3430.2,9.64396754]
[1641443752498,0.345,3432.0,3430.2,8.45226315]
[1641443752696,0.345,3432.0,3431.0,1.74292497]
[1641443752898,0.00284739,3431.1,3431.0,1.74292497]
[1641443753097,0.00284739,3431.1,3431.0,0.728855]
[1641443753296,0.00284739,3431.1,3430.7,1.4577099]
[1641443753495,0.00284739,3431.1,3430.8,1.5070836]
[1641443753696,7.897e-05,3431.0,3430.8,2.2359372]
[1641443753898,7.897e-05,3431.0,3430.8,2.9647872]